fUSD/lending_fUSD_20240814
["ID","MTS","AMOUNT","RATE_DAILY","PERIOD"]
[334831603,1723605121142,-573.09,0.00015616,2]
[334831604,1723605121151,-1688.94,0.00015616,2]
[334831605,1723605121160,-500.0,0.00015616,2]
[334831606,1723605121170,-754.52,0.00015616,2]
[334831607,1723605121180,-500.0,0.00015616,2]
[334831608,1723605121189,-500.0,0.00015616,2]
[334831609,1723605121199,-2125.28,0.00015616,2]
[334831610,1723605121208,-500.0,0.00015616,2]
[334831611,1723605121218,-862.91,0.00015616,2]
[334831612,1723605121227,-1627.71,0.00015616,2]
[334831613,1723605121237,-726.59,0.00015616,2]
[334831614,1723605121246,-5975.91,0.00015616,2]
[334831615,1723605121255,-500.0,0.00015616,2]
[334831616,1723605121265,-1414.92,0.00015616,2]
[334831617,1723605121274,-902.13,0.00015616,2]
[334831618,1723605121284,-592.73,0.00015616,2]
[334831619,1723605121293,-5374.81,0.00015616,2]
[334831620,1723605121303,-2088.05,0.00015616,2]
[334831621,1723605121313,-1387.45,0.00015616,2]
[334831622,1723605121322,-768.36,0.00015616,2]
[334831623,1723605121332,-3876.74,0.00015616,2]
[334831624,1723605121343,-500.0,0.00015616,2]
[334831625,1723605121354,-500.0,0.00015616,2]
[334831626,1723605121363,-1245.3,0.00015616,2]
[334831627,1723605121373,-618.4,0.00015616,2]
[334831628,1723605121383,-2815.43,0.00015616,2]
[334831629,1723605121393,-3826.76,0.00015616,2]
[334831630,1723605121403,-500.0,0.00015616,2]
[334831631,1723605121412,-807.19,0.00015616,2]
[334831632,1723605121423,-2271.26,0.00015616,2]
[334831633,1723605121432,-855.92,0.00015616,2]
[334831634,1723605121441,-7857.05,0.00015616,2]
[334831635,1723605121451,-1088.18,0.00015616,2]
[334831636,1723605121460,-500.0,0.00015616,2]
[334831637,1723605121470,-752.58,0.00015616,2]
[334831638,1723605121480,-500.0,0.00015616,2]
[334831639,1723605121490,-3025.79,0.00015616,2]
[334831640,1723605121499,-2164.19,0.00015616,2]
[334831641,1723605121509,-3869.55,0.00015616,2]
[334831642,1723605121519,-500.0,0.00015616,2]
[334831643,1723605121528,-892.24,0.00015616,2]
[334831644,1723605121538,-500.0,0.00015616,2]
[334831645,1723605121548,-662.61,0.00015616,2]
[334831646,1723605121558,-916.14,0.00015616,2]
[334831647,1723605121568,-795.16,0.00015616,2]
[334831648,1723605121578,-26609.07,0.00015616,2]
[334831649,1723605121587,-500.0,0.00015616,2]
[334831650,1723605121596,-3398.55,0.00015616,2]
[334831651,1723605121605,-22218.98,0.00015616,2]
[334831652,1723605121615,-2542.25,0.00015616,2]
[334831653,1723605121624,-1245.59,0.00015616,2]
[334831654,1723605121634,-1016.07,0.00015616,2]
[334831655,1723605121643,-500.0,0.00015616,2]
[334831656,1723605121653,-2255.75,0.00015616,2]
[334831657,1723605121663,-500.0,0.00015616,2]
[334831658,1723605121673,-500.0,0.00015616,2]
[334831659,1723605121683,-1410.58,0.00015616,2]
[334831660,1723605121692,-941.19,0.00015616,2]
[334831661,1723605121702,-500.0,0.00015616,2]
[334831662,1723605121711,-500.0,0.00015616,2]
[334831663,1723605121721,-8200.38,0.00015616,2]
[334831664,1723605121730,-500.0,0.00015616,2]
[334831665,1723605121740,-408.36268054,0.00015616,2]
[334831666,1723605121750,-5134.83,0.00015616,2]
[334831667,1723605121759,-1475.56,0.00015616,2]
[334831668,1723605121768,-500.0,0.00015616,2]
[334831669,1723605121778,-1590.03,0.00015616,2]
[334831670,1723605121787,-500.0,0.00015616,2]
[334831671,1723605121796,-500.0,0.00015616,2]
[334831672,1723605121805,-2005.17,0.00015616,2]
[334831673,1723605121814,-500.0,0.00015616,2]
[334831674,1723605121824,-500.0,0.00015616,2]
[334831675,1723605121833,-500.0,0.00015616,2]
[334831676,1723605121843,-598.02,0.00015616,2]
[334831677,1723605121852,-12984.39,0.00015616,2]
[334831678,1723605121861,-7951.86,0.00015616,2]
[334831679,1723605121871,-1032.44,0.00015616,2]
[334831680,1723605121881,-739.61,0.00015616,2]
[334831681,1723605121891,-2078.47,0.00015616,2]
[334831682,1723605121900,-500.0,0.00015616,2]
[334831683,1723605121910,-3476.41,0.00015616,2]
[334831684,1723605121920,-39703.17,0.00015616,2]
[334831685,1723605121930,-18895.17,0.00015616,2]
[334831686,1723605121939,-2008.56,0.00015616,2]
[334831687,1723605121948,-500.0,0.00015616,2]
[334831688,1723605121957,-500.0,0.00015616,2]
[334831689,1723605121967,-960.08,0.00015616,2]
[334831690,1723605121977,-16246.9,0.00015616,2]
[334831691,1723605121986,-500.0,0.00015616,2]
[334831692,1723605121995,-23755.04,0.00015616,2]
[334831693,1723605122005,-500.0,0.00015616,2]
[334831694,1723605122015,-1931.43,0.00015616,2]
[334831695,1723605122024,-596.55,0.00015616,2]
[334831696,1723605122034,-1617.8,0.00015616,2]
[334831697,1723605122043,-1313.03,0.00015616,2]
[334831698,1723605122052,-500.0,0.00015616,2]
[334831699,1723605122062,-7013.22,0.00015616,2]
[334831700,1723605122072,-5544.75,0.00015616,2]
[334831701,1723605122081,-500.0,0.00015616,2]
[334831702,1723605122091,-502.28,0.00015616,2]
[334831703,1723605122100,-13355.74,0.00015616,2]
[334831704,1723605122110,-560.1,0.00015616,2]
[334831705,1723605122119,-500.0,0.00015616,2]
[334831706,1723605122128,-500.0,0.00015616,2]
[334831707,1723605122138,-500.0,0.00015616,2]
[334831708,1723605122147,-2441.9,0.00015616,2]
[334831709,1723605122157,-2489.4,0.00015616,2]
[334831710,1723605122166,-1240.21,0.00015616,2]
[334831711,1723605122176,-1135.86,0.00015616,2]
[334831712,1723605122185,-500.0,0.00015616,2]
[334831713,1723605122194,-500.0,0.00015616,2]
[334831714,1723605122204,-500.0,0.00015616,2]
[334831715,1723605122213,-500.0,0.00015616,2]
[334831716,1723605122223,-4723.94,0.00015616,2]
[334831717,1723605122232,-824.22,0.00015616,2]
[334831718,1723605122241,-4121.71,0.00015616,2]
[334831719,1723605122251,-279.51919781,0.00015616,2]
[334831720,1723605122260,-500.0,0.00015616,2]
[334831721,1723605122269,-500.0,0.00015616,2]
[334831722,1723605122279,-1725.18,0.00015616,2]
[334831723,1723605122288,-500.0,0.00015616,2]
[334831724,1723605122407,-500.0,0.00015616,2]
[334831725,1723605122417,-382.97,0.00015616,2]
[334831726,1723605122427,-500.0,0.00015616,2]
[334831727,1723605122437,-678.73,0.00015616,2]
[334831728,1723605122447,-1375.35,0.00015616,2]
[334831729,1723605122457,-500.0,0.00015616,2]
[334831730,1723605122467,-500.0,0.00015616,2]
[334831731,1723605122477,-7442.74,0.00015616,2]
[334831732,1723605122489,-990.54,0.00015616,2]
[334831733,1723605122499,-895.16,0.00015616,2]
[334831734,1723605122510,-14963.69,0.00015616,2]
[334831735,1723605122523,-1429.94,0.00015616,2]
[334831736,1723605122535,-962.78,0.00015616,2]
[334831737,1723605122544,-500.0,0.00015616,2]
[334831738,1723605122555,-5404.54,0.00015616,2]
[334831739,1723605122564,-1416.37,0.00015616,2]
[334831740,1723605122574,-500.0,0.00015616,2]
[334831741,1723605122584,-3072.29,0.00015616,2]
[334831742,1723605122594,-500.0,0.00015616,2]
[334831743,1723605122604,-2553.52,0.00015616,2]
[334831744,1723605122614,-1865.83,0.00015616,2]
[334831745,1723605122626,-862.29,0.00015616,2]
[334831746,1723605122637,-1066.91,0.00015616,2]
[334831747,1723605122647,-10401.13,0.00015616,2]
[334831748,1723605122656,-996.29,0.00015616,2]
[334831749,1723605122666,-708.61,0.00015616,2]
[334831750,1723605122676,-500.0,0.00015616,2]
[334831751,1723605122686,-4853.34,0.00015616,2]
[334831752,1723605122696,-500.0,0.00015616,2]
[334831753,1723605122706,-2646.9,0.00015616,2]
[334831754,1723605122716,-500.0,0.00015616,2]
[334831755,1723605122726,-500.0,0.00015616,2]
[334831756,1723605122736,-8054.04,0.00015616,2]
[334831757,1723605122745,-1513.43,0.00015616,2]
[334831758,1723605122755,-4502.45,0.00015616,2]
[334831759,1723605122765,-3569.57,0.00015616,2]
[334831760,1723605122775,-1672.01,0.00015616,2]
[334831761,1723605122784,-1382.21,0.00015616,2]
[334831762,1723605122794,-500.0,0.00015616,2]
[334831763,1723605122804,-500.0,0.00015616,2]
[334831764,1723605122814,-500.0,0.00015616,2]
[334831765,1723605122824,-30978.45,0.00015616,2]
[334831766,1723605122833,-808.08,0.00015616,2]
[334831767,1723605122843,-1117.17,0.00015616,2]
[334831768,1723605122852,-500.0,0.00015616,2]
[334831769,1723605122862,-1667.3,0.00015616,2]
[334831770,1723605122872,-2412.04,0.00015616,2]
[334831771,1723605122886,-9957.53,0.00015616,2]
[334831772,1723605122895,-541.43,0.00015616,2]
[334831773,1723605122904,-1421.86,0.00015616,2]
[334831774,1723605122916,-1350.79,0.00015616,2]
[334831775,1723605122925,-3315.49,0.00015616,2]
[334831776,1723605122934,-275.40361291,0.00015616,2]
[334831777,1723605122944,-5365.68,0.00015616,2]
[334831778,1723605122954,-1559.83,0.00015616,2]
[334831779,1723605122963,-500.0,0.00015616,2]
[334831780,1723605122972,-500.0,0.00015616,2]
[334831781,1723605122981,-1637.79,0.00015616,2]
[334831782,1723605122991,-5871.12,0.00015616,2]
[334831783,1723605123000,-500.0,0.00015616,2]
[334831784,1723605123010,-1965.79,0.00015616,2]
[334831785,1723605123019,-500.0,0.00015616,2]
[334831786,1723605123029,-1378.04,0.00015616,2]
[334831787,1723605123039,-1616.8,0.00015616,2]
[334831788,1723605123048,-3530.55,0.00015616,2]
[334831789,1723605123058,-1964.9,0.00015616,2]
[334831790,1723605123068,-500.0,0.00015616,2]
[334831791,1723605123079,-500.0,0.00015616,2]
[334831792,1723605123089,-523.48,0.00015616,2]
[334831793,1723605123099,-500.0,0.00015616,2]
[334831794,1723605123109,-995.8,0.00015616,2]
[334831795,1723605123119,-1158.06,0.00015616,2]
[334831796,1723605123128,-500.0,0.00015616,2]
[334831797,1723605123137,-1771.71,0.00015616,2]
[334831798,1723605123147,-2095.59,0.00015616,2]
[334831799,1723605123157,-1058.49,0.00015616,2]
[334831800,1723605123167,-500.0,0.00015616,2]
[334831801,1723605123176,-500.0,0.00015616,2]
[334831802,1723605123185,-500.0,0.00015616,2]
[334831803,1723605123195,-980.96,0.00015616,2]
[334831804,1723605123204,-5450.64,0.00015616,2]
[334831805,1723605123214,-1436.17,0.00015616,2]
[334831806,1723605123223,-2445.12,0.00015616,2]
[334831807,1723605123233,-4063.03,0.00015616,2]
[334831808,1723605123243,-802.79,0.00015616,2]
[334831809,1723605123252,-500.0,0.00015616,2]
[334831810,1723605123262,-500.0,0.00015616,2]
[334831811,1723605123272,-1957.25,0.00015616,2]
[334831812,1723605123281,-821.33,0.00015616,2]
[334831813,1723605123291,-7067.94,0.00015616,2]
[334831814,1723605123301,-2774.43,0.00015616,2]
[334831815,1723605123311,-500.0,0.00015616,2]
[334831816,1723605123321,-500.0,0.00015616,2]
[334831817,1723605123330,-500.0,0.00015616,2]
[334831818,1723605123340,-1772.9,0.00015616,2]
[334831819,1723605123353,-2215.88,0.00015616,2]
[334831820,1723605123363,-4957.02,0.00015616,2]
[334831821,1723605123372,-500.0,0.00015616,2]
[334831822,1723605123383,-2209.2,0.00015616,2]
[334831823,1723605123394,-241.40929248,0.00015616,2]
[334831824,1723605123404,-500.0,0.00015616,2]
[334831825,1723605123414,-3061.51,0.00015616,2]
[334831826,1723605123425,-500.0,0.00015616,2]
[334831827,1723605123435,-3686.74,0.00015616,2]
[334831828,1723605123444,-1481.57,0.00015616,2]
[334831829,1723605123454,-500.0,0.00015616,2]
[334831830,1723605123464,-500.0,0.00015616,2]
[334831831,1723605123474,-500.0,0.00015616,2]
[334831832,1723605123484,-6552.26,0.00015616,2]
[334831833,1723605123494,-10224.05,0.00015616,2]
[334831834,1723605123505,-5926.55,0.00015616,2]
[334831835,1723605123515,-2121.42,0.00015616,2]
[334831836,1723605123526,-1373.93,0.00015616,2]
[334831837,1723605123536,-500.0,0.00015616,2]
[334831838,1723605123546,-1097.71,0.00015616,2]
[334831839,1723605123556,-607.8,0.00015616,2]
[334831840,1723605123566,-3557.64,0.00015616,2]
[334831841,1723605123575,-500.0,0.00015616,2]
[334831842,1723605123585,-2009.46,0.00015616,2]
[334831843,1723605123595,-613.33,0.00015616,2]
[334831844,1723605123605,-500.0,0.00015616,2]
[334831845,1723605123614,-3282.55,0.00015616,2]
[334831846,1723605123625,-2903.06,0.00015616,2]
[334831847,1723605123635,-2177.71,0.00015616,2]
[334831848,1723605123644,-500.0,0.00015616,2]
[334831849,1723605123654,-982.92,0.00015616,2]
[334831850,1723605123664,-19581.8,0.00015616,2]
[334831851,1723605123674,-500.0,0.00015616,2]
[334831852,1723605123683,-901.82,0.00015616,2]
[334831853,1723605123693,-500.0,0.00015616,2]
[334831854,1723605123702,-645.39,0.00015616,2]
[334831855,1723605123712,-503.71,0.00015616,2]
[334831856,1723605123723,-500.0,0.00015616,2]
[334831857,1723605123732,-1937.79,0.00015616,2]
[334831858,1723605123742,-559.53,0.00015616,2]
[334831859,1723605123752,-14794.65,0.00015616,2]
[334831860,1723605123762,-505.44,0.00015616,2]
[334831861,1723605123771,-500.0,0.00015616,2]
[334831862,1723605123781,-6442.8,0.00015616,2]
[334831863,1723605123790,-646.11,0.00015616,2]
[334831864,1723605123800,-4533.79,0.00015616,2]
[334831865,1723605123809,-500.0,0.00015616,2]
[334831866,1723605123819,-500.0,0.00015616,2]
[334831867,1723605123830,-1262.87,0.00015616,2]
[334831868,1723605123840,-921.69,0.00015616,2]
[334831869,1723605123850,-500.0,0.00015616,2]
[334831870,1723605123859,-500.0,0.00015616,2]
[334831871,1723605123869,-3002.74,0.00015616,2]
[334831872,1723605123880,-3535.51,0.00015616,2]
[334831873,1723605123890,-7782.05,0.00015616,2]
[334831874,1723605123901,-500.0,0.00015616,2]
[334831875,1723605123911,-617.55,0.00015616,2]
[334831876,1723605123921,-1681.03,0.00015616,2]
[334831877,1723605123931,-5884.62,0.00015616,2]
[334831878,1723605123941,-1212.09,0.00015616,2]
[334831879,1723605123951,-1178.67,0.00015616,2]
[334831880,1723605123960,-2997.53,0.00015616,2]
[334831881,1723605123970,-500.0,0.00015616,2]
[334831882,1723605123980,-1667.2,0.00015616,2]
[334831883,1723605123990,-13353.51,0.00015616,2]
[334831884,1723605124000,-5572.93,0.00015616,2]
[334831885,1723605124010,-3987.19,0.00015616,2]
[334831886,1723605124020,-3939.64,0.00015616,2]
[334831887,1723605124030,-6308.52,0.00015616,2]
[334831888,1723605124039,-19005.59,0.00015616,2]
[334831889,1723605124050,-500.0,0.00015616,2]
[334831890,1723605124060,-500.0,0.00015616,2]
[334831891,1723605124070,-500.0,0.00015616,2]
[334831892,1723605124079,-1888.59,0.00015616,2]
[334831893,1723605124089,-500.0,0.00015616,2]
[334831894,1723605124098,-4079.03,0.00015616,2]
[334831895,1723605124108,-2797.42,0.00015616,2]
[334831896,1723605124118,-500.0,0.00015616,2]
[334831897,1723605124129,-644.38,0.00015616,2]
[334831898,1723605124139,-216.0875716,0.00015616,2]
[334831899,1723605124148,-999.48,0.00015616,2]
[334831900,1723605124158,-500.0,0.00015616,2]
[334831901,1723605124168,-4551.83,0.00015616,2]
[334831902,1723605124177,-500.0,0.00015616,2]
[334831903,1723605124187,-1084.39,0.00015616,2]
[334831904,1723605124197,-7815.54,0.00015616,2]
[334831905,1723605124207,-500.0,0.00015616,2]
[334831906,1723605124217,-7759.78,0.00015616,2]
[334831907,1723605124227,-1415.9,0.00015616,2]
[334831908,1723605124236,-6685.67,0.00015616,2]
[334831909,1723605124246,-500.0,0.00015616,2]
[334831910,1723605124255,-500.0,0.00015616,2]
[334831911,1723605124264,-1701.31,0.00015616,2]
[334831912,1723605124275,-4953.62,0.00015616,2]
[334831913,1723605124284,-500.0,0.00015616,2]
[334831914,1723605124294,-1637.32,0.00015616,2]
[334831915,1723605124303,-1938.51,0.00015616,2]
[334831916,1723605124312,-1229.49,0.00015616,2]
[334831917,1723605124322,-729.12,0.00015616,2]
[334831918,1723605124331,-500.0,0.00015616,2]
[334831919,1723605124341,-500.0,0.00015616,2]
[334831920,1723605124354,-506.41737282,0.00015616,2]
[334831921,1723605124364,-5524.35,0.00015616,2]
[334831922,1723605124374,-746.42,0.00015616,2]
[334831923,1723605124385,-500.0,0.00015616,2]
[334831924,1723605124395,-1241.19,0.00015616,2]
[334831925,1723605124405,-1084.25,0.00015616,2]
[334831926,1723605124415,-23349.91,0.00015616,2]
[334831927,1723605124426,-4711.28,0.00015616,2]
[334831928,1723605124436,-959.78,0.00015616,2]
[334831929,1723605124445,-1166.89,0.00015616,2]
[334831930,1723605124455,-367.23737795,0.00015616,2]
[334831931,1723605124464,-500.0,0.00015616,2]
[334831932,1723605124473,-920.13,0.00015616,2]
[334831933,1723605124482,-500.0,0.00015616,2]
[334831934,1723605124492,-1991.21,0.00015616,2]
[334831935,1723605124501,-566.69,0.00015616,2]
[334831936,1723605124510,-500.0,0.00015616,2]
[334831937,1723605124519,-3979.88,0.00015616,2]
[334831938,1723605124528,-500.0,0.00015616,2]
[334831939,1723605124539,-219.962247,0.00015764,6]
[334831940,1723605124548,-150.70029,0.00015764,6]
[334831941,1723605124557,-167.0,0.00015831,2]
[334831942,1723605124567,-390.30858647,0.0001589,2]
[334831943,1723605124886,-500.0,0.0001589,2]
[334831944,1723605124896,-1578.73,0.0001589,2]
[334831945,1723605124906,-716.57,0.0001589,2]
[334831946,1723605124916,-500.0,0.0001589,2]
[334831947,1723605124925,-1456.16,0.0001589,2]
[334831948,1723605124934,-722.17,0.0001589,2]
[334831949,1723605124944,-666.82,0.0001589,2]
[334831950,1723605124953,-1288.24,0.0001589,2]
[334831951,1723605124962,-529.74,0.0001589,2]
[334831952,1723605124972,-608.2,0.0001589,2]
[334831953,1723605124982,-1485.87,0.0001589,2]
[334831954,1723605124992,-514.2,0.0001589,2]
[334831955,1723605125001,-517.05,0.0001589,2]
[334831956,1723605125011,-500.0,0.0001589,2]
[334831957,1723605125020,-642.75,0.0001589,2]
[334831958,1723605125030,-1111.14,0.0001589,2]
[334831959,1723605125039,-500.0,0.0001589,2]
[334831960,1723605125049,-500.0,0.0001589,2]
[334831961,1723605125058,-500.0,0.0001589,2]
[334831962,1723605125068,-651.1,0.0001589,2]
[334831963,1723605125077,-1485.31,0.0001589,2]
[334831964,1723605125087,-500.0,0.0001589,2]
[334831965,1723605125097,-500.0,0.0001589,2]
[334831966,1723605125106,-1237.37,0.0001589,2]
[334831967,1723605125115,-500.0,0.0001589,2]
[334831968,1723605125124,-500.0,0.0001589,2]
[334831969,1723605125134,-500.0,0.0001589,2]
[334831970,1723605125143,-500.0,0.0001589,2]
[334831971,1723605125153,-2683.95,0.0001589,2]
[334831972,1723605125163,-500.0,0.0001589,2]
[334831973,1723605125172,-500.0,0.0001589,2]
[334831974,1723605125182,-500.0,0.0001589,2]
[334831975,1723605125191,-543.73,0.0001589,2]
[334831976,1723605125201,-1047.06,0.0001589,2]
[334831977,1723605125211,-500.0,0.0001589,2]
[334831978,1723605125220,-500.0,0.0001589,2]
[334831979,1723605125230,-1348.18,0.0001589,2]
[334831980,1723605125239,-1232.81,0.0001589,2]
[334831981,1723605125249,-1118.67,0.0001589,2]
[334831982,1723605125259,-500.0,0.0001589,2]
[334831983,1723605125268,-976.44,0.0001589,2]
[334831984,1723605125278,-598.58,0.0001589,2]
[334831985,1723605125287,-500.0,0.0001589,2]
[334831986,1723605125297,-500.0,0.0001589,2]
[334831987,1723605125306,-500.0,0.0001589,2]
[334831988,1723605125315,-775.08,0.0001589,2]
[334831989,1723605125326,-500.0,0.0001589,2]
[334831990,1723605125335,-500.0,0.0001589,2]
[334831991,1723605125345,-716.51,0.0001589,2]
[334831992,1723605125357,-630.58,0.0001589,2]
[334831993,1723605125367,-1000.0,0.0001589,2]
[334831994,1723605125377,-500.0,0.0001589,2]
[334831995,1723605125387,-500.0,0.0001589,2]
[334831996,1723605125396,-618.82,0.0001589,2]
[334831997,1723605125406,-1479.01,0.0001589,2]
[334831998,1723605125416,-559.42,0.0001589,2]
[334831999,1723605125426,-500.0,0.0001589,2]
[334832000,1723605125436,-500.0,0.0001589,2]
[334832001,1723605125445,-3752.58,0.0001589,2]
[334832002,1723605125455,-500.0,0.0001589,2]
[334832003,1723605125464,-591.66,0.0001589,2]
[334832004,1723605125473,-429.3457184,0.0001589,2]
[334832005,1723605125483,-1435.79,0.0001589,2]
[334832006,1723605125492,-500.0,0.0001589,2]
[334832007,1723605125502,-1607.61,0.0001589,2]
[334832008,1723605125512,-1891.11,0.0001589,2]
[334832009,1723605125521,-662.17,0.0001589,2]
[334832010,1723605125531,-924.42,0.0001589,2]
[334832011,1723605125540,-1076.95,0.0001589,2]
[334832012,1723605125549,-500.0,0.0001589,2]
[334832013,1723605125560,-2239.55,0.0001589,2]
[334832014,1723605125569,-672.35,0.0001589,2]
[334832015,1723605125578,-4507.7,0.0001589,2]
[334832016,1723605125588,-500.0,0.0001589,2]
[334832017,1723605125598,-1006.17,0.0001589,2]
[334832018,1723605125607,-500.0,0.0001589,2]
[334832019,1723605125616,-500.0,0.0001589,2]
[334832020,1723605125626,-1053.16,0.0001589,2]
[334832021,1723605125635,-500.0,0.0001589,2]
[334832022,1723605125645,-2456.38,0.0001589,2]
[334832023,1723605125655,-3482.29,0.0001589,2]
[334832024,1723605125665,-2187.52,0.0001589,2]
[334832025,1723605125675,-500.0,0.0001589,2]
[334832026,1723605125684,-829.91,0.0001589,2]
[334832027,1723605125693,-500.0,0.0001589,2]
[334832028,1723605125703,-1703.74,0.0001589,2]
[334832029,1723605125712,-1971.7,0.0001589,2]
[334832030,1723605125721,-760.2,0.0001589,2]
[334832031,1723605125731,-1826.68,0.0001589,2]
[334832032,1723605125740,-500.0,0.0001589,2]
[334832033,1723605125749,-2857.54,0.0001589,2]
[334832034,1723605125759,-500.0,0.0001589,2]
[334832035,1723605125769,-500.0,0.0001589,2]
[334832036,1723605125779,-1745.81,0.0001589,2]
[334832037,1723605125788,-2493.78,0.0001589,2]
[334832038,1723605125797,-500.0,0.0001589,2]
[334832039,1723605125807,-2939.52,0.0001589,2]
[334832040,1723605125816,-893.52,0.0001589,2]
[334832041,1723605125826,-367.75777078,0.0001589,2]
[334832042,1723605125836,-1363.03,0.0001589,2]
[334832043,1723605125845,-500.0,0.0001589,2]
[334832044,1723605125854,-2070.38,0.0001589,2]
[334832045,1723605125864,-4162.9,0.0001589,2]
[334832046,1723605125873,-500.0,0.0001589,2]
[334832047,1723605125891,-1715.05,0.0001589,2]
[334832048,1723605125901,-1237.73,0.0001589,2]
[334832049,1723605125911,-2002.18,0.0001589,2]
[334832050,1723605125921,-519.39,0.0001589,2]
[334832051,1723605125931,-1293.49,0.0001589,2]
[334832052,1723605125940,-500.0,0.0001589,2]
[334832053,1723605125950,-500.0,0.0001589,2]
[334832054,1723605125959,-1362.3,0.0001589,2]
[334832055,1723605125968,-1490.02,0.0001589,2]
[334832056,1723605125978,-2761.82,0.0001589,2]
[334832057,1723605125987,-694.54,0.0001589,2]
[334832058,1723605125996,-357.83270475,0.0001589,2]
[334832059,1723605126006,-554.50945332,0.0001589,2]
[334832060,1723605126016,-2115.54,0.0001589,2]
[334832061,1723605126025,-500.0,0.0001589,2]
[334832062,1723605126035,-500.0,0.0001589,2]
[334832063,1723605126044,-1981.16,0.0001589,2]
[334832064,1723605126054,-1990.68,0.0001589,2]
[334832065,1723605126063,-369.90312095,0.0001589,2]
[334832066,1723605126073,-500.0,0.0001589,2]
[334832067,1723605126082,-500.0,0.0001589,2]
[334832068,1723605126091,-711.09,0.0001589,2]
[334832069,1723605126101,-569.37,0.0001589,2]
[334832070,1723605126111,-2757.85,0.0001589,2]
[334832071,1723605126122,-500.0,0.0001589,2]
[334832072,1723605126133,-500.0,0.0001589,2]
[334832073,1723605126142,-2766.44,0.0001589,2]
[334832074,1723605126154,-500.0,0.0001589,2]
[334832075,1723605126165,-1317.85,0.0001589,2]
[334832076,1723605126174,-500.0,0.0001589,2]
[334832077,1723605126184,-2961.75,0.0001589,2]
[334832078,1723605126196,-157.056626,0.0001589,2]
[334832079,1723605126208,-1308.18,0.0001589,2]
[334832080,1723605126220,-500.0,0.0001589,2]
[334832081,1723605126230,-2490.28,0.0001589,2]
[334832082,1723605126242,-589.56964719,0.0001589,2]
[334832083,1723605126251,-500.0,0.0001589,2]
[334832084,1723605126263,-2203.39,0.0001589,2]
[334832085,1723605126272,-152.506681,0.0001589,2]
[334832086,1723605126282,-508.38,0.0001589,2]
[334832087,1723605126291,-500.0,0.0001589,2]
[334832088,1723605126301,-878.97,0.0001589,2]
[334832089,1723605126310,-500.0,0.0001589,2]
[334832090,1723605126319,-683.69,0.0001589,2]
[334832091,1723605126329,-1154.39,0.0001589,2]
[334832092,1723605126338,-1322.45,0.0001589,2]
[334832093,1723605126350,-500.0,0.0001589,2]
[334832094,1723605126359,-500.0,0.0001589,2]
[334832095,1723605126370,-500.0,0.0001589,2]
[334832096,1723605126381,-3824.63,0.0001589,2]
[334832097,1723605126391,-553.9,0.0001589,2]
[334832098,1723605126401,-500.0,0.0001589,2]
[334832099,1723605126412,-2480.21,0.0001589,2]
[334832100,1723605126423,-917.23,0.0001589,2]
[334832101,1723605126434,-1073.07,0.0001589,2]
[334832102,1723605126445,-500.0,0.0001589,2]